bitfinex/quotes_BTCUSD_20241002
["timestamp","ask_amount","ask_price","bid_price","bid_amount"]
[1727902080758,0.164186,60907.0,60902.0,0.164196]
[1727902081264,0.164199,60902.0,60899.0,0.164205]
[1727902081499,0.27994149,60913.0,60895.0,0.142536]
[1727902081726,0.27994149,60913.0,60895.0,0.137536]
[1727902081727,0.164209,60898.0,60895.0,0.137536]
[1727902082189,0.001,60896.0,60895.0,0.301753]
[1727902082425,0.328385,60905.0,60895.0,0.137536]
[1727902082426,0.164202,60901.0,60895.0,0.137536]
[1727902082652,0.164198,60902.0,60898.0,0.164207]
[1727902082870,0.328355,60910.0,60895.0,0.137536]
[1727902082871,0.328369,60908.0,60895.0,0.137536]
[1727902083097,0.24623062,60905.0,60896.0,0.00328381]
[1727902083375,0.24623062,60905.0,60898.0,0.328416]
[1727902083614,0.001,60913.0,60905.0,0.164189]
[1727902083840,0.24623062,60907.0,60904.0,0.164191]
[1727902084056,0.328315,60917.0,60906.0,0.164185]
[1727902084057,0.164178,60910.0,60906.0,0.164185]
[1727902084308,0.328315,60917.0,60905.0,0.32838]
[1727902084542,0.328315,60917.0,60896.0,0.27994149]
[1727902084767,0.0774,60921.0,60903.0,0.023]
[1727902084768,0.328296,60921.0,60903.0,0.023]
[1727902084986,0.41039762,60914.0,60911.0,0.164172]
[1727902085204,0.32832,60917.0,60911.0,0.164172]
[1727902085423,0.165165,60915.0,60911.0,0.164172]
[1727902085649,0.16417,60913.0,60909.0,0.164178]
[1727902085877,0.001,60915.0,60908.0,0.328361]
[1727902086089,0.328332,60914.0,60910.0,0.164176]
[1727902086304,0.328332,60914.0,60908.0,0.328361]
[1727902086305,0.001,60915.0,60908.0,0.328361]
[1727902086535,0.24623062,60913.0,60902.0,0.1391]
[1727902086762,0.164211,60897.0,60896.0,0.005]
[1727902087257,0.164214,60896.0,60884.0,0.1432]
[1727902087498,0.164214,60896.0,60886.0,0.16424]
[1727902087714,0.164214,60896.0,60885.0,0.328484]
[1727902087944,0.164214,60896.0,60892.0,0.164224]
[1727902088170,0.164214,60896.0,60891.0,0.164226]
[1727902088637,0.164214,60896.0,60890.0,0.164229]
[1727902088896,0.164214,60896.0,60887.0,0.328474]
[1727902089137,0.164214,60896.0,60895.0,0.006636]
[1727902089138,0.166214,60896.0,60895.0,0.006636]
[1727902089386,0.165214,60896.0,60895.0,0.006636]
[1727902089633,0.166214,60896.0,60895.0,0.006636]
[1727902090166,0.41244462,60896.0,60895.0,0.146836]
[1727902090451,0.165214,60896.0,60895.0,0.141836]
[1727902090748,0.166214,60896.0,60895.0,0.003636]
[1727902091231,0.002,60896.0,60895.0,0.003636]
[1727902091485,0.002,60896.0,60895.0,0.167853]
[1727902093822,0.166214,60896.0,60895.0,0.003636]
[1727902094580,0.002,60896.0,60895.0,0.167853]
[1727902095359,0.002,60896.0,60895.0,0.17113719]
[1727902095607,0.000818,60904.0,60895.0,0.17113719]
[1727902095608,0.24623062,60903.0,60902.0,0.164198]
[1727902096176,0.000818,60904.0,60903.0,0.187195]
[1727902096395,0.000818,60904.0,60903.0,0.19231014]
[1727902096644,0.24623062,60922.0,60912.0,0.187171]
[1727902096919,0.24623062,60922.0,60912.0,0.60701249]
[1727902097456,0.24623062,60922.0,60921.0,0.164147]
[1727902097708,0.24623062,60922.0,60918.0,0.164152]
[1727902097709,0.41037562,60922.0,60918.0,0.164152]
[1727902098241,0.328267,60926.0,60920.0,0.164148]
[1727902098519,0.24623062,60929.0,60924.0,0.164138]
[1727902099189,0.24623062,60929.0,60913.0,0.27994149]
[1727902099190,0.57448562,60929.0,60922.0,0.164142]
[1727902099194,0.16414,60924.0,60917.0,0.328311]
[1727902099474,0.164128,60928.0,60922.0,0.328283]
[1727902099721,0.328246,60930.0,60921.0,0.164146]
[1727902099722,0.24623062,60927.0,60921.0,0.164146]
[1727902099996,0.164137,60925.0,60924.0,0.01]
[1727902100227,0.164137,60925.0,60921.0,0.164146]
[1727902100484,0.001,60924.0,60917.0,0.01]
[1727902100733,0.164141,60923.0,60920.0,0.164148]
[1727902100968,0.164141,60923.0,60921.0,0.01]
[1727902101210,0.001,60924.0,60921.0,0.186146]
[1727902101461,0.164144,60922.0,60921.0,0.01]
[1727902102151,0.164151,60920.0,60917.0,0.014]
[1727902102375,0.164155,60918.0,60917.0,0.014]
[1727902102913,0.3134001,60918.0,60917.0,0.014]
[1727902103137,0.3134001,60918.0,60901.0,0.1456]
[1727902103138,0.164195,60903.0,60901.0,0.1456]
[1727902103373,0.03295237,60918.0,60909.0,0.24623062]
[1727902103593,0.24623062,60914.0,60911.0,0.164173]
[1727902103807,0.164164,60915.0,60911.0,0.164173]
[1727902104032,0.164164,60915.0,60909.0,0.328356]
[1727902104033,0.164162,60916.0,60912.0,0.16417]
[1727902104257,0.328316,60917.0,60912.0,0.16417]
[1727902104477,0.164164,60915.0,60912.0,0.16417]
[1727902104713,0.330312,60918.0,60910.0,0.328349]
[1727902104714,0.164169,60913.0,60910.0,0.164176]
[1727902105164,0.164169,60913.0,60901.0,0.473997]
[1727902105165,0.164158,60917.0,60906.0,0.328374]
[1727902105410,0.001,60918.0,60917.0,0.307057]
[1727902105652,0.001,60918.0,60917.0,0.33333966]
[1727902105902,0.001,60918.0,60917.0,0.330057]
[1727902106181,0.164127,60929.0,60923.0,0.164141]
[1727902106486,0.328243,60931.0,60923.0,0.164141]
[1727902106960,0.164129,60928.0,60923.0,0.164141]
[1727902107401,0.164124,60930.0,60923.0,0.164141]
[1727902107623,0.41035562,60929.0,60923.0,0.164141]
[1727902107845,0.164128,60928.0,60923.0,0.164141]
[1727902108302,0.24623062,60929.0,60917.0,0.1559]
[1727902108303,0.57448462,60929.0,60917.0,0.1559]
[1727902108521,0.164155,60918.0,60917.0,0.013]
[1727902109011,0.16415,60920.0,60916.0,0.16416]
[1727902109234,0.328296,60921.0,60915.0,0.164162]
[1727902109459,0.164153,60919.0,60914.0,0.164165]
[1727902109675,0.165155,60918.0,60917.0,0.006]
[1727902109896,0.001,60918.0,60913.0,0.164168]
[1727902110117,0.164159,60917.0,60913.0,0.164168]
[1727902110355,0.164159,60917.0,60916.0,0.001]
[1727902110597,0.24623062,60922.0,60908.0,0.023]
[1727902110824,0.24623062,60922.0,60917.0,0.003]
[1727902110825,0.164155,60918.0,60917.0,0.003]
[1727902111938,0.164155,60918.0,60917.0,0.006]
[1727902112374,0.164155,60918.0,60917.0,0.003]
[1727902112593,0.165155,60918.0,60917.0,0.004]
[1727902112814,0.165155,60918.0,60917.0,0.003]
[1727902113260,0.001,60918.0,60917.0,0.003]
[1727902113732,0.24623062,60929.0,60917.0,0.003]
[1727902113733,0.000817,60936.0,60923.0,0.269141]
[1727902113964,0.000817,60936.0,60932.0,0.488917]
[1727902113965,0.24623062,60933.0,60932.0,0.488917]
[1727902114238,0.24623062,60933.0,60932.0,0.76885849]
[1727902114702,0.000817,60936.0,60935.0,0.264109]
[1727902114922,0.000817,60936.0,60935.0,0.59319569]
[1727902115137,0.000817,60936.0,60935.0,0.592329]
[1727902115611,0.000817,60936.0,60935.0,0.594329]
[1727902115855,0.000817,60936.0,60935.0,0.615329]
[1727902116755,0.001817,60936.0,60935.0,0.626329]
[1727902117194,0.001817,60936.0,60935.0,0.640329]
[1727902117408,0.000818,60943.0,60936.0,0.187106]
[1727902117621,0.000818,60943.0,60936.0,0.615316]
[1727902118317,0.000818,60943.0,60936.0,0.617316]
[1727902118533,0.000818,60943.0,60936.0,0.615316]
[1727902119212,0.000818,60943.0,60942.0,0.30294149]
[1727902119432,0.000818,60943.0,60942.0,0.79521149]
[1727902119654,0.00807406,60943.0,60942.0,0.79521149]
[1727902119867,0.000818,60943.0,60942.0,0.79521149]
[1727902120561,0.001818,60943.0,60942.0,0.80921149]
[1727902121041,0.001818,60943.0,60942.0,0.82321149]
[1727902122480,0.000818,60943.0,60942.0,0.79521149]
[1727902122714,0.001818,60943.0,60942.0,0.82321149]
[1727902123615,0.001818,60943.0,60942.0,0.92821149]
[1727902123844,0.001818,60943.0,60942.0,1.07391149]
[1727902124072,0.001818,60943.0,60942.0,1.07820253]
[1727902124514,0.001818,60943.0,60942.0,1.08020253]
[1727902125410,0.001818,60943.0,60942.0,1.24338924]
[1727902125628,0.000817,60944.0,60943.0,0.164087]
[1727902125848,0.000817,60944.0,60943.0,0.77845371]
[1727902126125,0.000817,60944.0,60943.0,0.78545371]
[1727902126885,0.24623062,60956.0,60955.0,0.46699649]
[1727902127135,0.24623062,60956.0,60955.0,0.79510649]
[1727902127614,0.000817,60965.0,60955.0,0.63105149]
[1727902127828,0.000817,60965.0,60963.0,0.164033]
[1727902128044,0.000817,60965.0,60955.0,0.95916049]
[1727902128045,0.000817,60965.0,60964.0,0.32806]
[1727902128802,0.164845,60965.0,60964.0,0.32806]
[1727902130231,0.165845,60965.0,60964.0,0.33406]
[1727902130234,0.165845,60965.0,60964.0,0.33906]
[1727902131858,0.17361192,60965.0,60964.0,0.33906]
[1727902133020,0.00958392,60965.0,60964.0,0.36206]
[1727902133248,0.001817,60965.0,60964.0,0.631091]
[1727902133714,0.001817,60965.0,60964.0,0.620091]
[1727902133952,0.000817,60965.0,60964.0,0.615091]
[1727902134169,0.001817,60965.0,60964.0,0.606091]
[1727902136015,0.000817,60965.0,60964.0,0.606091]
[1727902136247,0.000817,60978.0,60973.0,0.435307]
[1727902136248,0.24704762,60978.0,60973.0,0.435307]
[1727902136492,0.24704762,60978.0,60973.0,0.765317]
[1727902136707,0.24704762,60978.0,60973.0,0.763317]
[1727902137455,0.000817,60978.0,60973.0,0.777317]
[1727902137712,0.000817,60978.0,60973.0,0.78148528]
[1727902137930,0.000817,60978.0,60973.0,0.777317]
[1727902138146,0.000817,60978.0,60973.0,0.772317]
[1727902138375,0.000817,60978.0,60973.0,0.777317]
[1727902139051,0.000817,60978.0,60973.0,0.791317]
[1727902139782,0.000817,60978.0,60973.0,0.793317]
[1727902139984,0.000817,60978.0,60973.0,0.791317]
[1727902141157,0.000817,60978.0,60973.0,0.793317]
[1727902141382,0.000817,60978.0,60973.0,0.791317]
[1727902141849,0.000817,60978.0,60973.0,0.793317]
[1727902142569,0.000817,60978.0,60973.0,0.791317]
[1727902143332,0.000817,60978.0,60973.0,0.786317]
[1727902143611,0.000817,60978.0,60973.0,0.520017]
[1727902143860,0.000817,60980.0,60979.0,0.17099]
[1727902144135,0.000817,60980.0,60979.0,0.66215671]
[1727902144956,0.000817,60980.0,60979.0,0.68515671]
[1727902145157,0.000817,60980.0,60979.0,0.78515671]
[1727902145945,0.002,60982.0,60979.0,0.78515671]
[1727902145946,0.002,60982.0,60981.0,0.293985]
[1727902146203,0.000818,60985.0,60984.0,0.57391849]
[1727902146443,0.000818,60985.0,60984.0,0.7371052]
[1727902146699,0.000818,60985.0,60984.0,1.10786272]
[1727902147427,0.35003551,60986.0,60985.0,0.372674]
[1727902147698,0.35003551,60986.0,60985.0,0.86181071]
[1727902147942,0.35003551,60986.0,60985.0,1.1437522]
[1727902149171,0.35103551,60986.0,60985.0,1.1577522]
[1727902149443,0.35103551,60986.0,60985.0,1.1697522]
[1727902149683,0.35103551,60986.0,60985.0,1.17405568]
[1727902149935,0.35103551,60986.0,60985.0,1.2208632]
[1727902150425,0.35103551,60986.0,60985.0,1.16005568]
[1727902150426,0.35003551,60986.0,60985.0,1.16005568]
[1727902150672,0.19583551,60986.0,60985.0,1.31025568]
[1727902150915,0.0159591,60996.0,60993.0,0.293953]
[1727902151134,0.000817,61005.0,61004.0,0.170923]
[1727902151357,0.000817,61005.0,61004.0,0.619773]
[1727902151595,0.000817,61005.0,61004.0,0.90171449]
[1727902151831,0.000817,61005.0,61004.0,1.0649012]
[1727902152775,0.000817,61005.0,61004.0,0.633773]
[1727902152776,0.001817,61005.0,61004.0,0.633773]
[1727902153037,0.001817,61005.0,61004.0,0.92771449]
[1727902153280,0.002817,61005.0,61004.0,0.66094647]
[1727902153529,0.002817,61005.0,61004.0,0.66594647]
[1727902153760,0.002817,61005.0,61004.0,0.66094647]
[1727902153983,0.002817,61005.0,61004.0,0.63794647]
[1727902154205,0.002817,61005.0,61004.0,0.62894647]
[1727902154430,0.002817,61005.0,61004.0,0.62394647]
[1727902154648,0.000817,61005.0,61004.0,0.60994647]
[1727902154884,0.000817,61005.0,61004.0,0.619773]
[1727902155103,0.000817,61005.0,61004.0,0.34185]
[1727902155104,0.001817,61005.0,61004.0,0.34185]
[1727902155323,0.001817,61005.0,61004.0,0.505773]
[1727902155560,0.002817,61005.0,61004.0,0.519773]
[1727902155785,0.001817,61005.0,61004.0,0.491773]
[1727902156010,0.002817,61005.0,61004.0,0.35585]
[1727902156457,0.165737,61005.0,61004.0,0.34185]
[1727902156676,0.002817,61005.0,61004.0,0.35585]
[1727902157141,0.002817,61005.0,61004.0,0.519773]
[1727902157362,0.002817,61005.0,61004.0,0.505773]
[1727902157586,0.166737,61005.0,61004.0,0.35585]
[1727902158060,0.166737,61005.0,61004.0,0.34185]
[1727902158526,0.166737,61005.0,61004.0,0.35585]
[1727902158527,0.18360684,61005.0,61004.0,0.35585]
[1727902158757,0.248437,61005.0,61004.0,0.36985]
[1727902158989,0.26233947,61005.0,61004.0,0.32785]
[1727902159433,0.26233947,61005.0,61004.0,0.33985]
[1727902159434,0.245437,61005.0,61004.0,0.33985]
[1727902159879,0.26233206,61005.0,61004.0,0.33985]
[1727902160328,0.39599532,61005.0,61004.0,0.33985]
[1727902160549,0.39601829,61005.0,61004.0,0.32785]
[1727902160772,0.26235503,61005.0,61004.0,0.32785]
[1727902160989,0.26235503,61005.0,61004.0,0.33285]
[1727902161199,0.09761803,61005.0,61004.0,0.33885]
[1727902161421,0.26153803,61005.0,61004.0,0.33385]
[1727902161634,0.26453803,61005.0,61004.0,0.33385]
[1727902161858,0.26753803,61005.0,61004.0,0.33385]
[1727902162283,0.29323684,61005.0,61004.0,0.33385]
[1727902162747,0.27713581,61005.0,61004.0,0.33385]
[1727902163197,0.27713581,61005.0,61000.0,0.001634]
[1727902163198,0.44387249,61001.0,61000.0,0.001634]
[1727902163419,0.63912369,61001.0,61000.0,0.001634]
[1727902164127,0.163963,60989.0,60977.0,0.163995]
[1727902164360,0.163963,60989.0,60968.0,0.39463062]
[1727902164361,0.163998,60976.0,60972.0,0.164009]
[1727902164593,0.164004,60974.0,60968.0,0.24623062]
[1727902164810,0.1809552,60974.0,60968.0,0.24623062]
[1727902165485,0.0169512,60974.0,60973.0,0.165641]
[1727902165935,0.01689334,60974.0,60973.0,0.493653]
[1727902166169,0.01789334,60974.0,60973.0,0.504653]
[1727902166660,0.01789334,60974.0,60973.0,0.012634]
[1727902166882,0.18189734,60974.0,60973.0,0.012634]
[1727902167341,0.18189734,60974.0,60973.0,0.023634]
[1727902167342,0.18289734,60974.0,60973.0,0.023634]
[1727902167565,0.26289734,60974.0,60973.0,0.023634]
[1727902168987,0.28743563,60974.0,60973.0,0.023634]
[1727902169460,0.26289734,60974.0,60973.0,0.023634]
[1727902170571,0.26289734,60974.0,60973.0,0.001634]
[1727902170572,0.26189734,60974.0,60973.0,0.001634]
[1727902170790,0.26089734,60974.0,60973.0,0.001634]
[1727902171018,0.244004,60974.0,60973.0,0.005634]
[1727902171239,0.244004,60974.0,60973.0,0.003634]
[1727902171469,0.246004,60974.0,60973.0,0.003634]
[1727902171686,0.347004,60974.0,60973.0,0.001634]
[1727902172362,0.346004,60974.0,60973.0,0.001634]
[1727902172585,0.347004,60974.0,60973.0,0.001634]
[1727902172818,0.345004,60974.0,60973.0,0.001634]
[1727902174229,0.167004,60974.0,60973.0,0.001634]
[1727902174491,0.165004,60974.0,60973.0,0.001634]
[1727902174726,0.164004,60974.0,60973.0,0.001634]
[1727902175405,0.165004,60974.0,60973.0,0.001634]
[1727902175922,0.166004,60974.0,60973.0,0.001634]
[1727902176353,0.19171636,60974.0,60973.0,0.001634]
[1727902176790,0.19071636,60974.0,60973.0,0.001634]
[1727902177245,0.18971636,60974.0,60973.0,0.001634]
[1727902177464,0.164004,60974.0,60973.0,0.002634]
[1727902177682,0.164004,60974.0,60973.0,0.003634]
[1727902177899,0.25570586,60974.0,60973.0,0.003634]
[1727902178122,0.264004,60974.0,60973.0,0.001634]
[1727902178345,0.264004,60974.0,60973.0,0.006634]
[1727902178569,0.264004,60974.0,60956.0,0.24623062]
[1727902178570,0.16405,60957.0,60956.0,0.24623062]
[1727902179033,0.164038,60962.0,60956.0,0.41028262]
[1727902179252,0.328065,60964.0,60947.0,0.24623062]
[1727902179536,0.16404,60961.0,60953.0,0.164058]
[1727902179753,0.164042,60960.0,60953.0,0.164058]
[1727902180422,0.328085,60960.0,60950.0,0.328135]
[1727902180650,0.328085,60960.0,60948.0,0.164073]
[1727902180872,0.328085,60960.0,60943.0,0.001634]
[1727902180873,0.28094149,60957.0,60956.0,0.014]
[1727902181104,0.001,60957.0,60956.0,0.014]
[1727902181616,0.164042,60960.0,60954.0,0.164056]
[1727902181617,0.165042,60960.0,60954.0,0.164056]
[1727902181836,0.002,60960.0,60953.0,0.007]
[1727902182048,0.492157,60957.0,60953.0,0.007]
[1727902182284,0.164058,60954.0,60953.0,0.007]
[1727902182717,0.28094149,60957.0,60948.0,0.24623062]
[1727902182933,0.3538376,60954.0,60948.0,0.24623062]
[1727902183155,0.164079,60947.0,60942.0,0.164089]
[1727902183419,0.27994149,60951.0,60940.0,0.57441862]
[1727902183667,0.164075,60948.0,60943.0,0.165721]
[1727902183897,0.32815,60948.0,60943.0,0.001634]
[1727902184109,0.32815,60948.0,60943.0,0.165721]
[1727902184110,0.492225,60948.0,60943.0,0.165721]
[1727902184320,0.164075,60948.0,60944.0,0.164084]
[1727902184540,0.328138,60950.0,60943.0,0.001634]
[1727902184752,0.164074,60948.0,60943.0,0.329808]
[1727902184962,0.57437362,60949.0,60944.0,0.164084]
[1727902185177,0.164077,60947.0,60944.0,0.164084]
[1727902185571,0.27994149,60951.0,60944.0,0.328167]
[1727902185812,0.001,60948.0,60943.0,0.005634]
[1727902186030,0.164077,60947.0,60943.0,0.18072]
[1727902186243,0.165076,60948.0,60944.0,0.164084]
[1727902186677,0.328143,60949.0,60943.0,0.012634]
[1727902186889,0.001,60947.0,60944.0,0.168084]
[1727902187320,0.164075,60948.0,60944.0,0.164084]
[1727902187567,0.164082,60945.0,60944.0,0.014]
[1727902187801,0.164082,60945.0,60944.0,0.01]
[1727902188251,0.164082,60945.0,60943.0,0.001634]
[1727902188252,0.164085,60944.0,60943.0,0.001634]
[1727902188709,0.44402649,60944.0,60943.0,0.001634]
[1727902189827,0.44502649,60944.0,60943.0,0.005634]
[1727902190481,0.44402649,60944.0,60943.0,0.001634]
[1727902190696,0.44502649,60944.0,60943.0,0.005634]
[1727902191164,0.44402649,60944.0,60943.0,0.001634]
[1727902191401,0.44502649,60944.0,60943.0,0.008634]
[1727902191829,0.44402649,60944.0,60943.0,0.001634]
[1727902192266,0.44502649,60944.0,60943.0,0.009634]
[1727902192958,0.44602649,60944.0,60943.0,0.013634]
[1727902193173,0.44602649,60944.0,60943.0,0.009634]
[1727902193174,0.44502649,60944.0,60943.0,0.009634]
[1727902193393,0.6128002,60944.0,60943.0,0.001634]
[1727902193611,0.6128002,60944.0,60943.0,0.005634]
[1727902193612,0.6969002,60944.0,60943.0,0.005634]
[1727902193829,0.7969002,60944.0,60943.0,0.009634]
[1727902194253,0.7969002,60944.0,60943.0,0.013634]
[1727902194254,0.7979002,60944.0,60943.0,0.013634]
[1727902194679,0.7989002,60944.0,60943.0,0.005634]
[1727902194923,0.8069002,60944.0,60943.0,0.005634]
[1727902195379,0.8009002,60944.0,60943.0,0.005634]
[1727902195600,0.19480856,60944.0,60943.0,0.005634]
[1727902196029,0.18980856,60944.0,60943.0,0.001634]
[1727902196250,0.168085,60944.0,60943.0,0.001634]
[1727902196686,0.179085,60944.0,60943.0,0.002634]
[1727902196909,0.32443515,60944.0,60943.0,0.006634]
[1727902197125,0.169085,60944.0,60943.0,0.005634]
[1727902197559,0.165085,60944.0,60943.0,0.009634]
[1727902198001,0.164085,60944.0,60943.0,0.002634]
[1727902198227,0.166085,60944.0,60943.0,0.002634]
[1727902198654,0.164085,60944.0,60943.0,0.002634]
[1727902199083,0.02572684,60950.0,60943.0,0.001634]
[1727902199342,0.164085,60944.0,60943.0,0.001634]
[1727902199557,0.328156,60947.0,60943.0,0.001634]
[1727902200022,0.002,60944.0,60943.0,0.001634]
[1727902200272,0.165085,60944.0,60943.0,0.001634]
[1727902200498,0.164085,60944.0,60943.0,0.001634]
[1727902200722,0.164085,60944.0,60943.0,0.011634]
[1727902200723,0.55988179,60944.0,60943.0,0.011634]
[1727902200946,0.55988179,60944.0,60943.0,0.007634]
[1727902201412,0.44502649,60944.0,60943.0,0.001634]
[1727902201632,0.62592649,60944.0,60943.0,0.011634]
[1727902202303,0.62592649,60944.0,60922.0,0.41037462]
[1727902202304,0.264114,60933.0,60932.0,0.24623062]
[1727902202532,0.54405549,60933.0,60932.0,0.24623062]
[1727902202764,0.164128,60928.0,60922.0,0.24623062]
[1727902202983,0.44406949,60928.0,60922.0,0.24623062]
[1727902203463,0.44606949,60928.0,60916.0,0.001636]
[1727902203682,0.44406949,60928.0,60920.0,0.164148]
[1727902203899,0.328246,60930.0,60927.0,0.002636]
[1727902204120,0.02573251,60933.0,60927.0,0.153136]
[1727902204337,0.1,60935.0,60927.0,0.153136]
[1727902204563,0.328215,60936.0,60927.0,0.152136]
[1727902204781,0.27994149,60938.0,60927.0,0.152136]
[1727902204782,0.164118,60932.0,60927.0,0.154136]
[1727902205051,0.27994149,60938.0,60930.0,0.328243]
[1727902205271,0.002,60943.0,60927.0,0.154136]
[1727902205272,0.27994149,60943.0,60932.0,0.24623062]
[1727902205513,0.002,60947.0,60927.0,0.153136]
[1727902205514,0.24623062,60940.0,60938.0,0.164101]
[1727902205737,0.24623062,60947.0,60946.0,0.164079]
[1727902206188,0.24623062,60954.0,60949.0,0.32814]
[1727902206408,0.24623062,60954.0,60938.0,0.0823]
[1727902206409,0.24623062,60954.0,60951.0,0.328131]
[1727902206674,0.57429562,60964.0,60955.0,0.328109]
[1727902206675,0.24623062,60957.0,60955.0,0.328109]
[1727902206887,0.24623062,60957.0,60955.0,0.164053]
[1727902207123,0.164044,60959.0,60954.0,0.328115]
[1727902207345,0.002,60954.0,60951.0,0.328131]
[1727902207559,0.002,60954.0,60953.0,0.16406]
[1727902207777,0.001,60954.0,60953.0,0.16406]
[1727902207996,0.001,60954.0,60953.0,0.16734109]
[1727902208432,0.001,60954.0,60953.0,0.16406]
[1727902208653,0.001,60957.0,60956.0,0.164052]
[1727902208878,0.002,60957.0,60956.0,0.164052]
[1727902209533,0.001,60957.0,60956.0,0.164052]
[1727902209755,0.24623062,60964.0,60962.0,0.164036]
[1727902210178,0.164028,60965.0,60960.0,0.492121]
[1727902210387,0.164035,60963.0,60959.0,0.164043]
[1727902210621,0.164036,60962.0,60959.0,0.164043]
[1727902210852,0.328076,60962.0,60956.0,0.006]
[1727902211131,0.16404,60961.0,60957.0,0.164047]
[1727902211721,0.16404,60961.0,60960.0,0.002]
[1727902212259,0.164028,60965.0,60960.0,0.002]
[1727902212488,0.164021,60968.0,60964.0,0.16403]
[1727902212707,0.0257164,60969.0,60961.0,0.1559]
[1727902212924,0.57506162,60973.0,60967.0,0.16302]
[1727902212925,0.164012,60971.0,60967.0,0.16302]
[1727902213368,0.164012,60971.0,60964.0,0.328059]
[1727902213369,0.000817,60973.0,60972.0,0.164009]
[1727902214052,0.000817,60973.0,60972.0,0.160009]
[1727902214327,0.000817,60973.0,60972.0,0.58231956]
[1727902214546,0.000817,60973.0,60972.0,0.411809]
[1727902214976,0.000817,60973.0,60972.0,0.417809]
[1727902215194,0.001817,60973.0,60972.0,0.417809]
[1727902215671,0.24623062,60984.0,60983.0,0.16398]
[1727902215893,0.24623062,60984.0,60983.0,0.31878]
[1727902216338,0.24623062,60994.0,60983.0,0.1548]
[1727902216555,0.24623062,60994.0,60991.0,0.163958]
[1727902216767,0.16396,60991.0,60987.0,0.163969]
[1727902216989,0.163959,60991.0,60987.0,0.163969]
[1727902217646,0.163957,60992.0,60986.0,0.327941]
[1727902217859,0.163957,60992.0,60988.0,0.163966]
[1727902218069,0.001,60991.0,60988.0,0.163966]
[1727902218312,0.163961,60990.0,60987.0,0.008]
[1727902218525,0.163961,60990.0,60987.0,0.171969]
[1727902218756,0.001,60991.0,60987.0,0.008]
[1727902218971,0.165959,60991.0,60987.0,0.179967]
[1727902219188,0.001,60991.0,60988.0,0.163964]
[1727902219418,0.001,60991.0,60987.0,0.184967]
[1727902219419,0.001,60990.0,60987.0,0.184967]
[1727902219650,0.001,60990.0,60989.0,0.163963]
[1727902219870,0.001,60990.0,60988.0,0.327933]
[1727902219871,0.327889,60997.0,60990.0,0.163961]
[1727902220085,0.164958,60991.0,60987.0,0.503904]
[1727902220313,0.001,60991.0,60990.0,0.163961]
[1727902220776,0.000817,61000.0,60990.0,0.00229154]
[1727902221056,0.000817,61000.0,60997.0,0.16394]
[1727902221279,0.000817,61000.0,60995.0,0.327892]
[1727902221280,0.163939,60998.0,60995.0,0.163946]
[1727902221939,0.000817,61000.0,60997.0,0.163941]
[1727902222158,0.000817,61000.0,60994.0,0.163948]
[1727902222371,0.16394,60998.0,60994.0,0.163948]
[1727902222580,0.163937,60999.0,60995.0,0.163946]
[1727902222792,0.163937,60999.0,60995.0,0.175946]
[1727902223216,0.163937,60999.0,60995.0,0.163946]
[1727902223419,0.001,60998.0,60995.0,0.176946]
[1727902223643,0.001,60998.0,60995.0,0.013]
[1727902223644,0.44388649,60996.0,60995.0,0.013]
[1727902223865,0.327912,60992.0,60986.0,0.16397]
[1727902224088,0.327901,60995.0,60989.0,0.24623062]
[1727902224301,0.327913,60992.0,60985.0,0.163973]
[1727902224519,0.327913,60992.0,60982.0,0.327964]
[1727902224731,0.163962,60990.0,60983.0,0.48276]
[1727902224970,0.27994149,60996.0,60983.0,0.48276]
[1727902224971,0.163959,60991.0,60985.0,0.163972]
[1727902225197,0.163962,60990.0,60985.0,0.163972]
[1727902225631,0.163969,60987.0,60983.0,0.1548]
[1727902225854,0.16396,60991.0,60985.0,0.163973]
[1727902226094,0.001,60998.0,60997.0,0.163942]
[1727902226327,0.24623062,60995.0,60994.0,0.16395]
[1727902226556,0.000817,61000.0,60991.0,0.0789]
[1727902226557,0.000817,61000.0,60995.0,0.327895]
[1727902226775,0.000817,61000.0,60999.0,0.163937]
[1727902227668,0.000817,61000.0,60999.0,0.16526996]
[1727902227897,0.000817,61000.0,60999.0,0.16527684]
[1727902228113,0.000817,61000.0,60999.0,0.163937]
[1727902228568,0.28175849,61000.0,60999.0,0.009]
[1727902228806,0.50773474,61000.0,60999.0,0.009]
[1727902229498,0.44669249,61000.0,60999.0,0.009]
[1727902229945,0.54569249,61000.0,60999.0,0.005]
[1727902230175,0.54669249,61000.0,60999.0,0.005]
[1727902230396,0.54969249,61000.0,60999.0,0.015]
[1727902230844,0.54869249,61000.0,60999.0,0.005]
[1727902230971,0.54969249,61000.0,60999.0,0.006]
[1727902231451,0.54869249,61000.0,60999.0,0.005]
[1727902231661,0.55506522,61000.0,60999.0,0.006]
[1727902231883,0.55406522,61000.0,60999.0,0.001]
[1727902232097,0.55406522,61000.0,60999.0,0.002]
[1727902232098,0.56106522,61000.0,60999.0,0.002]
[1727902234741,0.72392064,61000.0,60999.0,0.002]
[1727902234962,0.72392064,61000.0,60981.0,0.24623062]
[1727902234963,0.163982,60982.0,60981.0,0.24623062]
[1727902235182,0.44392349,60982.0,60981.0,0.24623062]
[1727902235396,0.45025108,60982.0,60981.0,0.24623062]
[1727902235629,0.163998,60976.0,60975.0,0.1504]
[1727902235843,0.17041602,60976.0,60975.0,0.1504]
[1727902236751,0.17141602,60976.0,60975.0,0.009]
[1727902236964,0.45135751,60976.0,60975.0,0.009]
[1727902237631,0.45235751,60976.0,60975.0,0.018]
[1727902237830,0.45135751,60976.0,60975.0,0.009]
[1727902238053,0.45135751,60976.0,60973.0,0.001636]
[1727902238054,0.264004,60974.0,60973.0,0.001636]